[Event "FIDE World Junior U20-ch Girls 2025"]
[Site "Petrovac"]
[Date "2025.02.25"]
[Round "1.1"]
[White "Lu, Miaoyi"]
[Black "Sneha Halder"]
[Result "0-1"]
[Annotator "ChessBase"]
[ECO "A06"]
[WhiteElo "2432"]
[BlackElo "2065"]
[PlyCount "100"]
[EventDate "2025.02.23"]
[EventType "swiss"]
[EventCountry "MNE"]
[SourceTitle "playchess.com"]
[Source "ChessBase"]
[SourceQuality "1"]
[TimeControl "40/5400+30:1800+30"]

1. Nf3 {[%emt 0:00:02]} d5 {[%emt 0:00:30]} 2. e3 {[%emt 0:00:05]} Bf5 {[%emt 0:00:40]} 3. c4 {[%emt 0:00:34]} dxc4 {[%emt 0:01:29]} 4. Bxc4 {[%emt 0:01:23]} e6 {[%emt 0:00:06]} 5. Qb3 {[%emt 0:03:59]} Qc8 {[%emt 0:01:09]} 6. Nc3 {[%emt 0:14:52]} Nf6 {[%emt 0:03:52]} 7. d4 {[%emt 0:05:53]} c6 {[%emt 0:02:04]} 8. O-O {[%emt 0:01:09]} Nbd7 {[%emt 0:08:50]} 9. e4 {[%emt 0:05:26]} Bg4 {[%emt 0:01:52]} 10. Nd2 {[%emt 0:23:28]} b5 {[%emt 0:13:46]} 11. Bd3 {[%emt 0:00:02]} a6 {[%emt 0:01:18]} 12. h3 {[%emt 0:05:31]} Bh5 {[%emt 0:03:45]} 13. a4 {[%emt 0:02:48]} e5 {[%emt 0:04:22]} 14. dxe5 {[%emt 0:05:08]} Nxe5 {[%emt 0:01:13]} 15. Bb1 {[%emt 0:01:23]} Bc5 {[%emt 0:04:25]} 16. axb5 {[%emt 0:05:07]} axb5 {[%emt 0:04:48]} 17. Rxa8 {[%emt 0:00:04]} Qxa8 {[%emt 0:00:05]} 18. Kh1 {[%emt 0:00:11]} g5 {[%emt 0:05:32]} 19. Nd1 {[%emt 0:04:45]} Qd8 {[%emt 0:11:37]} 20. Qg3 {[%emt 0:04:04]} Bd6 {[%emt 0:10:29]} 21. Qxg5 {[%emt 0:02:57]} Rg8 {[%emt 0:00:54]} 22. Qe3 {[%emt 0:01:07]} Bxd1 {[%emt 0:04:32]} 23. Rxd1 {[%emt 0:04:31]} Nfg4 {[%emt 0:01:01]} 24. Qe2 {[%emt 0:07:03]} Bc5 {[%emt 0:06:02]} 25. Rf1 {[%emt 0:00:51]} Qh4 {[%emt 0:00:20]} 26. Nf3 {[%emt 0:00:27]} Nxf3 {[%emt 0:00:47]} 27. Qxf3 {[%emt 0:00:33]} Nxf2+ {[%emt 0:00:20]} 28. Rxf2 {[%emt 0:00:22]} Qxf2 {[%emt 0:00:24]} 29. Qxf2 {[%emt 0:00:13]} Bxf2 {[%emt 0:00:01]} 30. g4 {[%emt 0:00:50]} h5 {[%emt 0:00:20]} 31. Kg2 {[%emt 0:00:10]} Bd4 {[%emt 0:00:51]} 32. g5 {[%emt 0:00:51]} f6 {[%emt 0:00:54]} 33. e5 {[%emt 0:00:34]} fxg5 {[%emt 0:01:21]} 34. e6 {[%emt 0:00:09]} Ke7 {[%emt 0:00:22]} 35. Bf5 {[%emt 0:00:51]} Kf6 {[%emt 0:00:50]} 36. Bb1 {[%emt 0:00:26]} c5 {[%emt 0:00:41]} 37. Be4 {[%emt 0:00:34]} Kxe6 {[%emt 0:00:28]} 38. Bc6 {[%emt 0:00:03]} Kf6 {[%emt 0:00:11]} 39. b3 {[%emt 0:00:52]} c4 {[%emt 0:00:56]} 40. b4 {[%emt 0:00:23]} c3 {[%emt 0:00:23]} 41. Kf3 {[%emt 0:01:56]} Rd8 {[%emt 0:02:07]} 42. Bxb5 {[%emt 0:13:23]} Rb8 {[%emt 0:01:00]} 43. Bd3 {[%emt 0:00:16]} Rxb4 {[%emt 0:00:20]} 44. Bc2 {[%emt 0:02:57]} Be5 {[%emt 0:00:33]} 45. Ba3 {[%emt 0:07:43]} Rh4 {[%emt 0:00:39]} 46. Kg2 {[%emt 0:00:16]} Rd4 {[%emt 0:00:05]} 47. Kf3 {[%emt 0:00:19]} Rd2 {[%emt 0:00:07]} 48. Be4 {[%emt 0:01:16]} c2 {[%emt 0:00:52]} 49. Bh7 {[%emt 0:01:03]} Rh2 {[%emt 0:00:43]} 50. Bc1 {[%emt 0:03:19]} Rh1 {[%emt 0:01:07]} 0-1

[Event "FIDE World Junior U20-ch Girls 2025"]
[Site "Petrovac"]
[Date "2025.02.25"]
[Round "1.2"]
[White "Shokirjonova, Barchinoy"]
[Black "Gaal, Zsoka"]
[Result "0-1"]
[Annotator "ChessBase"]
[ECO "E35"]
[WhiteElo "2061"]
[BlackElo "2404"]
[PlyCount "64"]
[EventDate "2025.02.23"]
[EventType "swiss"]
[EventCountry "MNE"]
[SourceTitle "playchess.com"]
[Source "ChessBase"]
[SourceQuality "1"]
[TimeControl "40/5400+30:1800+30"]

1. d4 {[%emt 0:00:33]} Nf6 {[%emt 0:00:26]} 2. c4 {[%emt 0:00:18]} e6 {[%emt 0:00:12]} 3. Nc3 {[%emt 0:00:35]} Bb4 {[%emt 0:00:27]} 4. Qc2 {[%emt 0:00:53]} d5 {[%emt 0:00:54]} 5. cxd5 {[%emt 0:02:38]} exd5 {[%emt 0:00:18]} 6. Bg5 {[%emt 0:01:24]} h6 {[%emt 0:07:37]} 7. Bxf6 {[%emt 0:02:47]} Qxf6 {[%emt 0:00:20]} 8. a3 {[%emt 0:01:14]} Bxc3+ {[%emt 0:01:32]} 9. Qxc3 {[%emt 0:00:09]} c6 {[%emt 0:00:15]} 10. e3 {[%emt 0:07:20]} O-O {[%emt 0:02:10]} 11. Nf3 {[%emt 0:04:12]} Bf5 {[%emt 0:02:14]} 12. Ne5 {[%emt 0:07:39]} Nd7 {[%emt 0:05:34]} 13. Nxd7 {[%emt 0:03:15]} Bxd7 {[%emt 0:00:09]} 14. Be2 {[%emt 0:01:58]} Qg5 {[%emt 0:11:39]} 15. Bf3 {[%emt 0:04:59]} Rae8 {[%emt 0:05:46]} 16. h4 {[%emt 0:09:47]} Qf6 {[%emt 0:01:26]} 17. b4 {[%emt 0:11:38]} Bf5 {[%emt 0:11:37]} 18. Ke2 {[%emt 0:09:55]} Re7 {[%emt 0:09:04]} 19. g4 {[%emt 0:03:56]} Be4 {[%emt 0:03:56]} 20. Bxe4 {[%emt 0:01:17]} dxe4 {[%emt 0:01:45]} 21. Rag1 {[%emt 0:10:18]} Qe6 {[%emt 0:06:11]} 22. g5 {[%emt 0:06:17]} h5 {[%emt 0:00:43]} 23. Rh2 {[%emt 0:01:08]} g6 {[%emt 0:02:18]} 24. Rc1 {[%emt 0:02:51]} Rd7 {[%emt 0:01:19]} 25. Kd2 {[%emt 0:00:44]} Rd5 {[%emt 0:01:01]} 26. Kc2 {[%emt 0:00:35]} a5 {[%emt 0:01:25]} 27. Rhh1 {[%emt 0:03:32]} Rf5 {[%emt 0:05:44]} 28. Rhf1 {[%emt 0:00:59]} axb4 {[%emt 0:00:17]} 29. axb4 {[%emt 0:00:23]} Ra8 {[%emt 0:01:40]} 30. Rb1 {[%emt 0:00:49]} Qa2+ {[%emt 0:00:30]} 31. Rb2 {[%emt 0:00:25]} Qa6 {[%emt 0:00:20]} 32. Rbb1 {[%emt 0:01:44]} Qe2+ {[%emt 0:00:14]} 0-1

[Event "FIDE World Junior U20-ch Girls 2025"]
[Site "Petrovac"]
[Date "2025.02.25"]
[Round "1.3"]
[White "Song, Yuxin"]
[Black "Mrittika Mallick"]
[Result "1/2-1/2"]
[Annotator "RC"]
[ECO "B90"]
[WhiteElo "2381"]
[BlackElo "2058"]
[PlyCount "61"]
[EventDate "2025.02.23"]
[EventType "swiss"]
[EventCountry "MNE"]
[SourceTitle "playchess.com"]
[Source "ChessBase"]
[SourceQuality "1"]
[TimeControl "40/5400+30:1800+30"]

1. e4 {[%emt 0:00:03]} c5 {[%emt 0:00:10]} 2. Nc3 {[%emt 0:00:05]} d6 {[%emt 0:00:19]} 3. Nf3 {[%emt 0:00:07]} Nf6 {[%emt 0:00:19]} 4. d4 {[%emt 0:00:04]} cxd4 {[%emt 0:00:09]} 5. Nxd4 {[%emt 0:00:03]} a6 {[%emt 0:00:12]} 6. f3 {[%emt 0:00:03]} e5 {[%emt 0:01:48]} 7. Nb3 {[%emt 0:00:06]} Be6 {[%emt 0:00:08]} 8. Be3 {[%emt 0:00:05]} h5 {[%emt 0:00:37]} 9. Nd5 {[%emt 0:04:35]} Nxd5 {[%emt 0:02:21]} 10. exd5 {[%emt 0:00:07]} Bf5 {[%emt 0:00:25]} 11. Bd3 {[%emt 0:01:31]} Bxd3 {[%emt 0:09:50]} 12. Qxd3 {[%emt 0:00:05]} Be7 {[%emt 0:00:50]} 13. O-O-O {[%emt 0:00:08]} Bg5 {[%emt 0:01:14]} 14. Kb1 {[%emt 0:00:15]} Bxe3 {[%emt 0:00:16]} 15. Qxe3 {[%emt 0:00:06]} Nd7 {[%emt 0:04:19]} 16. f4 {[%emt 0:09:05]} O-O {[%emt 0:07:07]} 17. Qh3 {[%emt 0:12:23]} exf4 {[%emt 0:04:41]} 18. Qxh5 {[%emt 0:00:40]} Qf6 {[%emt 0:03:27]} 19. Rhf1 {[%emt 0:13:01]} Ne5 {[%emt 0:01:23]} 20. Rd4 {[%emt 0:11:50]} Ng6 {[%emt 0:01:41]} 21. g3 {[%emt 0:03:24]} Qe5 {[%emt 0:06:04]} 22. Qxe5 {[%emt 0:04:50]} dxe5 {[%emt 0:00:10]} 23. Rd2 {[%emt 0:00:30]} b5 {[%emt 0:00:49]} 24. Nc5 {[%emt 0:01:43]} a5 {[%emt 0:06:41]} 25. a3 {[%emt 0:08:29]} a4 {[%emt 0:03:25]} 26. gxf4 {[%emt 0:06:15]} Nxf4 {[%emt 0:07:13]} 27. Ne4 {[%emt 0:05:25]} Rac8 {[%emt 0:05:57]} 28. Nc3 {[%emt 0:00:51]} Rc5 {[%emt 0:00:43]} 29. Re1 {[%emt 0:02:00]} f6 {[%emt 0:00:37]} 30. d6 {[%emt 0:07:03]} Rd8 {[%emt 0:04:05]} 31. d7 {[%emt 0:00:36]} 1/2-1/2

[Event "FIDE World Junior U20-ch Girls 2025"]
[Site "Petrovac"]
[Date "2025.02.25"]
[Round "1.4"]
[White "Shuqja, Klean"]
[Black "Rakshitta Ravi"]
[Result "0-1"]
[Annotator "ChessBase"]
[ECO "C00"]
[WhiteElo "2049"]
[BlackElo "2365"]
[PlyCount "74"]
[EventDate "2025.02.23"]
[EventType "swiss"]
[EventCountry "MNE"]
[SourceTitle "playchess.com"]
[Source "ChessBase"]
[SourceQuality "1"]
[TimeControl "40/5400+30:1800+30"]

1. e4 {[%emt 0:00:01]} e6 {[%emt 0:00:59]} 2. d3 {[%emt 0:00:08]} d5 {[%emt 0:01:31]} 3. Nd2 {[%emt 0:00:09]} b6 {[%emt 0:01:16]} 4. g3 {[%emt 0:01:16]} Bb7 {[%emt 0:00:51]} 5. Bg2 {[%emt 0:00:19]} Nd7 {[%emt 0:05:06]} 6. Qe2 {[%emt 0:03:04]} dxe4 {[%emt 0:07:00]} 7. Bxe4 {[%emt 0:07:53]} Qc8 {[%emt 0:03:00]} 8. Bxb7 {[%emt 0:03:07]} Qxb7 {[%emt 0:00:05]} 9. Qe4 {[%emt 0:03:39]} c6 {[%emt 0:03:18]} 10. Ngf3 {[%emt 0:02:03]} Ngf6 {[%emt 0:00:13]} 11. Qe2 {[%emt 0:01:26]} Be7 {[%emt 0:03:50]} 12. Ne4 {[%emt 0:09:28]} O-O {[%emt 0:04:25]} 13. O-O {[%emt 0:06:21]} c5 {[%emt 0:04:11]} 14. b3 {[%emt 0:09:27]} b5 {[%emt 0:06:52]} 15. a4 {[%emt 0:04:35]} c4 {[%emt 0:04:43]} 16. bxc4 {[%emt 0:04:57]} bxc4 {[%emt 0:00:30]} 17. Ba3 {[%emt 0:09:25]} cxd3 {[%emt 0:02:46]} 18. cxd3 {[%emt 0:02:12]} Bxa3 {[%emt 0:00:58]} 19. Nxf6+ {[%emt 0:01:48]} Nxf6 {[%emt 0:00:06]} 20. Rxa3 {[%emt 0:00:06]} Rfd8 {[%emt 0:02:48]} 21. Rc3 {[%emt 0:06:16]} Qd7 {[%emt 0:10:40]} 22. Qc2 {[%emt 0:02:35]} Qd5 {[%emt 0:02:19]} 23. d4 {[%emt 0:01:35]} Qh5 {[%emt 0:04:11]} 24. Kg2 {[%emt 0:01:49]} Nd5 {[%emt 0:00:40]} 25. Rb3 {[%emt 0:04:54]} Rab8 {[%emt 0:14:12]} 26. Rfb1 {[%emt 0:01:24]} Rbc8 {[%emt 0:00:08]} 27. Qd2 {[%emt 0:01:05]} Qg6 {[%emt 0:02:44]} 28. Rc1 {[%emt 0:05:23]} h6 {[%emt 0:04:24]} 29. Rb7 {[%emt 0:03:47]} Qe4 {[%emt 0:07:03]} 30. Rxa7 {[%emt 0:01:14]} Rxc1 {[%emt 0:01:39]} 31. Qxc1 {[%emt 0:00:03]} Rb8 {[%emt 0:00:46]} 32. Qe1 {[%emt 0:01:11]} Qc2 {[%emt 0:00:15]} 33. Qd2 {[%emt 0:01:20]} Qc6 {[%emt 0:00:11]} 34. Rxf7 {[%emt 0:02:56]} Rb3 {[%emt 0:01:02]} 35. Ra7 {[%emt 0:00:30]} g5 {[%emt 0:02:23]} 36. h3 {[%emt 0:00:25]} Nf4+ {[%emt 0:00:11]} 37. gxf4 {[%emt 0:01:00]} Qxf3+ {[%emt 0:00:04]} 0-1

[Event "FIDE World Junior U20-ch Girls 2025"]
[Site "Petrovac"]
[Date "2025.02.25"]
[Round "1.5"]
[White "Shukhman, Anna"]
[Black "Zhou, Shumeng"]
[Result "1-0"]
[Annotator "ChessBase"]
[ECO "C42"]
[WhiteElo "2365"]
[BlackElo "2049"]
[PlyCount "91"]
[EventDate "2025.02.23"]
[EventType "swiss"]
[EventCountry "MNE"]
[SourceTitle "playchess.com"]
[Source "ChessBase"]
[SourceQuality "1"]
[TimeControl "40/5400+30:1800+30"]

1. e4 {[%emt 0:00:02]} e5 {[%emt 0:00:06]} 2. Nf3 {[%emt 0:00:02]} Nf6 {[%emt 0:00:07]} 3. Nxe5 {[%emt 0:00:03]} d6 {[%emt 0:00:06]} 4. Nf3 {[%emt 0:00:02]} Nxe4 {[%emt 0:00:08]} 5. d4 {[%emt 0:00:02]} d5 {[%emt 0:00:08]} 6. Bd3 {[%emt 0:00:02]} Bd6 {[%emt 0:00:39]} 7. O-O {[%emt 0:00:07]} O-O {[%emt 0:00:05]} 8. c4 {[%emt 0:00:02]} c6 {[%emt 0:00:06]} 9. Re1 {[%emt 0:00:02]} Bf5 {[%emt 0:00:08]} 10. Qb3 {[%emt 0:00:09]} Qd7 {[%emt 0:00:58]} 11. Nc3 {[%emt 0:00:13]} Nxc3 {[%emt 0:01:28]} 12. Bxf5 {[%emt 0:00:03]} Qxf5 {[%emt 0:00:07]} 13. bxc3 {[%emt 0:00:03]} b6 {[%emt 0:10:36]} 14. cxd5 {[%emt 0:00:43]} Qxd5 {[%emt 0:02:35]} 15. c4 {[%emt 0:04:14]} Qf5 {[%emt 0:03:41]} 16. Ba3 {[%emt 0:16:34]} Qf6 {[%emt 0:08:12]} 17. c5 {[%emt 0:02:30]} Bc7 {[%emt 0:17:56]} 18. cxb6 {[%emt 0:00:22]} axb6 {[%emt 0:00:10]} 19. Be7 {[%emt 0:03:39]} Qh6 {[%emt 0:07:13]} 20. Bxf8 {[%emt 0:00:07]} Kxf8 {[%emt 0:00:10]} 21. Ne5 {[%emt 0:05:20]} Qe6 {[%emt 0:11:53]} 22. Nxc6 {[%emt 0:05:20]} Qxb3 {[%emt 0:13:51]} 23. axb3 {[%emt 0:00:10]} Rxa1 {[%emt 0:00:10]} 24. Rxa1 {[%emt 0:00:03]} Nxc6 {[%emt 0:00:15]} 25. Rc1 {[%emt 0:00:02]} Bxh2+ {[%emt 0:08:09]} 26. Kxh2 {[%emt 0:00:02]} Nxd4 {[%emt 0:00:09]} 27. b4 {[%emt 0:00:09]} Ke7 {[%emt 0:01:59]} 28. Rc4 {[%emt 0:00:08]} Ne6 {[%emt 0:01:37]} 29. Rc6 {[%emt 0:00:10]} b5 {[%emt 0:00:25]} 30. Rb6 {[%emt 0:04:23]} Nd4 {[%emt 0:00:43]} 31. Kg3 {[%emt 0:00:09]} Kd7 {[%emt 0:03:14]} 32. Rb7+ {[%emt 0:00:37]} Ke6 {[%emt 0:01:24]} 33. Kf4 {[%emt 0:00:04]} Kd5 {[%emt 0:01:55]} 34. Rxf7 {[%emt 0:01:15]} Ne6+ {[%emt 0:03:33]} 35. Ke3 {[%emt 0:00:14]} Kc4 {[%emt 0:00:31]} 36. f4 {[%emt 0:00:46]} g6 {[%emt 0:01:36]} 37. Re7 {[%emt 0:00:55]} Nf8 {[%emt 0:00:25]} 38. g4 {[%emt 0:00:52]} Kxb4 {[%emt 0:01:51]} 39. f5 {[%emt 0:00:08]} gxf5 {[%emt 0:00:35]} 40. gxf5 {[%emt 0:00:02]} Kc3 {[%emt 0:00:40]} 41. Rc7+ {[%emt 0:30:12]} Kb3 {[%emt 0:30:23]} 42. Rf7 {[%emt 0:00:04]} Ng6 {[%emt 0:00:07]} 43. fxg6 {[%emt 0:00:02]} hxg6 {[%emt 0:00:06]} 44. Kd2 {[%emt 0:00:22]} b4 {[%emt 0:00:59]} 45. Kc1 {[%emt 0:00:06]} g5 {[%emt 0:01:14]} 46. Rg7 {[%emt 0:00:56]} 1-0

[Event "FIDE World Junior U20-ch Girls 2025"]
[Site "Petrovac"]
[Date "2025.02.25"]
[Round "1.6"]
[White "Vujatovic, Irina"]
[Black "Khamdamova, Afruza"]
[Result "0-1"]
[Annotator "ChessBase"]
[ECO "C95"]
[WhiteElo "2042"]
[BlackElo "2354"]
[PlyCount "90"]
[EventDate "2025.02.23"]
[EventType "swiss"]
[EventCountry "MNE"]
[SourceTitle "playchess.com"]
[Source "ChessBase"]
[SourceQuality "1"]
[TimeControl "40/5400+30:1800+30"]

1. e4 {[%emt 0:00:03]} e5 {[%emt 0:00:21]} 2. Nf3 {[%emt 0:00:07]} Nc6 {[%emt 0:00:07]} 3. Bb5 {[%emt 0:00:03]} a6 {[%emt 0:00:06]} 4. Ba4 {[%emt 0:00:06]} Nf6 {[%emt 0:00:05]} 5. O-O {[%emt 0:00:07]} Be7 {[%emt 0:00:04]} 6. Re1 {[%emt 0:00:06]} b5 {[%emt 0:00:04]} 7. Bb3 {[%emt 0:00:05]} d6 {[%emt 0:00:04]} 8. c3 {[%emt 0:00:10]} O-O {[%emt 0:00:05]} 9. h3 {[%emt 0:00:03]} Nb8 {[%emt 0:02:33]} 10. d4 {[%emt 0:00:09]} Nbd7 {[%emt 0:00:07]} 11. Nbd2 {[%emt 0:00:06]} Bb7 {[%emt 0:00:03]} 12. Bc2 {[%emt 0:00:06]} Re8 {[%emt 0:03:17]} 13. Nf1 {[%emt 0:00:16]} Bf8 {[%emt 0:00:28]} 14. Ng3 {[%emt 0:00:10]} g6 {[%emt 0:01:22]} 15. Bg5 {[%emt 0:00:15]} h6 {[%emt 0:03:09]} 16. Bd2 {[%emt 0:00:36]} Bg7 {[%emt 0:03:56]} 17. Bd3 {[%emt 0:05:35]} Nb6 {[%emt 0:10:02]} 18. Qc1 {[%emt 0:00:35]} Kh7 {[%emt 0:00:09]} 19. b3 {[%emt 0:00:50]} exd4 {[%emt 0:06:11]} 20. cxd4 {[%emt 0:01:31]} c5 {[%emt 0:00:08]} 21. Bc3 {[%emt 0:01:21]} Rc8 {[%emt 0:00:54]} 22. Qb2 {[%emt 0:11:50]} Nfd7 {[%emt 0:05:08]} 23. Rad1 {[%emt 0:05:00]} b4 {[%emt 0:04:06]} 24. Bd2 {[%emt 0:00:47]} d5 {[%emt 0:00:10]} 25. exd5 {[%emt 0:02:00]} Nxd5 {[%emt 0:08:24]} 26. Rxe8 {[%emt 0:02:52]} Qxe8 {[%emt 0:00:34]} 27. Ne4 {[%emt 0:01:16]} Nc3 {[%emt 0:08:04]} 28. Nxc3 {[%emt 0:10:09]} Bxf3 {[%emt 0:01:16]} 29. Re1 {[%emt 0:02:18]} Qd8 {[%emt 0:07:28]} 30. Ne2 {[%emt 0:02:06]} Bxe2 {[%emt 0:01:05]} 31. Rxe2 {[%emt 0:00:17]} Bxd4 {[%emt 0:00:09]} 32. Qc2 {[%emt 0:00:49]} a5 {[%emt 0:03:13]} 33. Kh1 {[%emt 0:19:00]} Qf6 {[%emt 0:02:15]} 34. f4 {[%emt 0:01:33]} Kg7 {[%emt 0:01:13]} 35. Re4 {[%emt 0:05:14]} Nb6 {[%emt 0:00:24]} 36. f5 {[%emt 0:05:03]} g5 {[%emt 0:03:51]} 37. h4 {[%emt 0:03:15]} Nd7 {[%emt 0:01:55]} 38. Bb5 {[%emt 0:09:13]} Qxf5 {[%emt 0:05:44]} 39. Bxd7 {[%emt 0:00:48]} Qxd7 {[%emt 0:00:05]} 40. hxg5 {[%emt 0:00:21]} hxg5 {[%emt 0:00:03]} 41. Bxg5 {[%emt 0:34:03]} Rh8+ {[%emt 0:33:51]} 42. Bh4 {[%emt 0:06:34]} f5 {[%emt 0:09:44]} 43. Rf4 {[%emt 0:00:00]} Be5 {[%emt 0:00:00]} 44. Qf2 {[%emt 0:00:00]} Qd1+ {[%emt 0:00:00]} 45. Kh2 {[%emt 0:00:00]} Qg4 {[%emt 0:00:00]} 0-1

[Event "FIDE World Junior U20-ch Girls 2025"]
[Site "Petrovac"]
[Date "2025.02.25"]
[Round "1.7"]
[White "Nurman, Alua"]
[Black "Huseynova, Lala"]
[Result "1-0"]
[Annotator "ChessBase"]
[ECO "B95"]
[WhiteElo "2336"]
[BlackElo "2032"]
[PlyCount "71"]
[EventDate "2025.02.23"]
[EventType "swiss"]
[EventCountry "MNE"]
[SourceTitle "playchess.com"]
[Source "ChessBase"]
[SourceQuality "1"]
[TimeControl "40/5400+30:1800+30"]

1. e4 {[%emt 0:00:03]} c5 {[%emt 0:00:09]} 2. Nf3 {[%emt 0:00:08]} d6 {[%emt 0:00:04]} 3. d4 {[%emt 0:00:05]} cxd4 {[%emt 0:00:06]} 4. Nxd4 {[%emt 0:00:06]} Nf6 {[%emt 0:00:05]} 5. Nc3 {[%emt 0:00:05]} a6 {[%emt 0:00:03]} 6. Bg5 {[%emt 0:00:18]} e6 {[%emt 0:00:19]} 7. Qe2 {[%emt 0:03:34]} Be7 {[%emt 0:00:29]} 8. f4 {[%emt 0:01:26]} h6 {[%emt 0:01:37]} 9. Bxf6 {[%emt 0:01:11]} Bxf6 {[%emt 0:00:25]} 10. O-O-O {[%emt 0:00:09]} Qc7 {[%emt 0:15:02]} 11. g4 {[%emt 0:17:57]} Nc6 {[%emt 0:03:18]} 12. Nxc6 {[%emt 0:01:07]} bxc6 {[%emt 0:06:55]} 13. Qd2 {[%emt 0:08:28]} Be7 {[%emt 0:19:56]} 14. h4 {[%emt 0:07:40]} Rb8 {[%emt 0:02:28]} 15. Bc4 {[%emt 0:05:46]} d5 {[%emt 0:10:29]} 16. Bb3 {[%emt 0:01:45]} d4 {[%emt 0:07:30]} 17. Ne2 {[%emt 0:12:50]} c5 {[%emt 0:01:22]} 18. c3 {[%emt 0:14:55]} Bb7 {[%emt 0:02:44]} 19. Qd3 {[%emt 0:00:11]} dxc3 {[%emt 0:09:09]} 20. Qxc3 {[%emt 0:00:09]} O-O {[%emt 0:02:27]} 21. Bc2 {[%emt 0:01:00]} a5 {[%emt 0:05:07]} 22. g5 {[%emt 0:01:45]} Ba6 {[%emt 0:01:17]} 23. gxh6 {[%emt 0:01:23]} Bf6 {[%emt 0:01:12]} 24. e5 {[%emt 0:00:06]} Bxe2 {[%emt 0:00:35]} 25. Rd2 {[%emt 0:02:23]} gxh6 {[%emt 0:03:55]} 26. Rxe2 {[%emt 0:01:24]} Bg7 {[%emt 0:00:08]} 27. f5 {[%emt 0:03:52]} exf5 {[%emt 0:01:25]} 28. Rg1 {[%emt 0:00:04]} Rb4 {[%emt 0:01:40]} 29. Bxf5 {[%emt 0:03:29]} Kh8 {[%emt 0:00:56]} 30. Qg3 {[%emt 0:04:21]} Rg8 {[%emt 0:01:08]} 31. Reg2 {[%emt 0:00:33]} Rc4+ {[%emt 0:02:58]} 32. Kb1 {[%emt 0:00:10]} Rd4 {[%emt 0:00:00]} 33. Bc2 {[%emt 0:03:29]} Qd8 {[%emt 0:01:00]} 34. Qxg7+ {[%emt 0:01:49]} Rxg7 {[%emt 0:00:02]} 35. Rxg7 {[%emt 0:00:01]} f5 {[%emt 0:01:17]} 36. exf6 {[%emt 0:00:02]} 1-0

[Event "FIDE World Junior U20-ch Girls 2025"]
[Site "Petrovac"]
[Date "2025.02.25"]
[Round "1.8"]
[White "Radenkovic, Mila"]
[Black "Kairbekova, Amina"]
[Result "0-1"]
[Annotator "ChessBase"]
[ECO "B33"]
[WhiteElo "2027"]
[BlackElo "2336"]
[PlyCount "62"]
[EventDate "2025.02.23"]
[EventType "swiss"]
[EventCountry "MNE"]
[SourceTitle "playchess.com"]
[Source "ChessBase"]
[SourceQuality "1"]
[TimeControl "40/5400+30:1800+30"]

1. e4 {[%emt 0:00:07]} c5 {[%emt 0:00:04]} 2. Nf3 {[%emt 0:00:09]} e6 {[%emt 0:00:07]} 3. d4 {[%emt 0:00:41]} cxd4 {[%emt 0:00:06]} 4. Nxd4 {[%emt 0:00:05]} Nf6 {[%emt 0:00:03]} 5. Nc3 {[%emt 0:00:09]} Nc6 {[%emt 0:00:03]} 6. Ndb5 {[%emt 0:01:07]} Bc5 {[%emt 0:01:34]} 7. Be3 {[%emt 0:14:01]} Bxe3 {[%emt 0:02:38]} 8. Nd6+ {[%emt 0:01:31]} Ke7 {[%emt 0:04:40]} 9. fxe3 {[%emt 0:01:41]} a6 {[%emt 0:00:25]} 10. Qd2 {[%emt 0:01:51]} Qc7 {[%emt 0:04:09]} 11. O-O-O {[%emt 0:01:56]} b5 {[%emt 0:01:13]} 12. g4 {[%emt 0:11:20]} Ne8 {[%emt 0:05:50]} 13. Nf5+ {[%emt 0:19:11]} Kf8 {[%emt 0:04:05]} 14. Nd4 {[%emt 0:01:58]} Ne5 {[%emt 0:03:33]} 15. Be2 {[%emt 0:03:16]} Bb7 {[%emt 0:00:36]} 16. Rhf1 {[%emt 0:02:16]} Ke7 {[%emt 0:05:50]} 17. Qe1 {[%emt 0:04:20]} Nd6 {[%emt 0:03:45]} 18. Qh4+ {[%emt 0:03:26]} Kf8 {[%emt 0:00:04]} 19. Rf4 {[%emt 0:09:36]} b4 {[%emt 0:14:48]} 20. Rdf1 {[%emt 0:18:33]} bxc3 {[%emt 0:01:11]} 21. Qh5 {[%emt 0:01:16]} cxb2+ {[%emt 0:04:16]} 22. Kb1 {[%emt 0:00:01]} Ng6 {[%emt 0:00:08]} 23. e5 {[%emt 0:00:19]} Ne4 {[%emt 0:02:30]} 24. Rxf7+ {[%emt 0:02:19]} Ke8 {[%emt 0:00:14]} 25. Nb3 {[%emt 0:00:24]} Nc3+ {[%emt 0:01:24]} 26. Kxb2 {[%emt 0:00:02]} Nxe2 {[%emt 0:00:21]} 27. Rxg7 {[%emt 0:00:40]} Qxe5+ {[%emt 0:01:05]} 28. Qxe5 {[%emt 0:00:10]} Nxe5 {[%emt 0:00:04]} 29. Re1 {[%emt 0:01:37]} Bf3 {[%emt 0:05:14]} 30. Nd2 {[%emt 0:00:34]} Rb8+ {[%emt 0:00:06]} 31. Ka1 {[%emt 0:00:04]} Nc3 {[%emt 0:02:05]} 0-1